[Event "Open NK Rapid 2025 bord 26-50"]
[Site "Helmond, Netherlands"]
[Date "2025.05.03"]
[Round "6.12"]
[White "Chaganti, Prahasith Reddy"]
[Black "Wilming, Auke"]
[Result "0-1"]
[TimeControl "15 min +5 sec increment"]
[WhiteFideId "34697586"]
[BlackFideId "40101096"]
[WhiteElo "1799"]
[BlackElo "1962"]

1. e4 {[%clk 00:14:59]} {[%emt 00:00:11]} e5 {[%clk 00:15:09]} {[%emt
00:00:01]} 2. Nf3 {[%clk 00:15:03]} {[%emt 00:00:02]} Nc6 {[%clk 00:15:13]}
{[%emt 00:00:01]} 3. Bc4 {[%clk 00:15:07]} Nf6 {[%clk 00:15:16]} {[%emt
00:00:01]} 4. Ng5 {[%clk 00:15:07]} {[%emt 00:00:05]} d5 {[%clk 00:15:20]}
{[%emt 00:00:02]} 5. exd5 {[%clk 00:15:11]} Na5 {[%clk 00:15:24]} {[%emt
00:00:01]} 6. Bb5+ {[%clk 00:15:15]} c6 {[%clk 00:15:28]} {[%emt 00:00:01]} 7.
dxc6 {[%clk 00:15:19]} {[%emt 00:00:01]} bxc6 {[%clk 00:15:32]} 8. Bd3 {[%clk
00:15:23]} {[%emt 00:00:01]} Nd5 {[%clk 00:15:35]} 9. Nf3 {[%clk 00:15:28]} Bd6
{[%clk 00:15:34]} {[%emt 00:00:06]} 10. O-O {[%clk 00:15:29]} {[%emt 00:00:03]}
O-O {[%clk 00:15:36]} {[%emt 00:00:03]} 11. Re1 {[%clk 00:15:33]} f5 {[%clk
00:15:40]} {[%emt 00:00:01]} 12. Nxe5 {[%clk 00:15:34]} {[%emt 00:00:04]} Qf6
{[%clk 00:15:34]} {[%emt 00:00:11]} 13. Nf3 {[%clk 00:15:20]} {[%emt 00:00:19]}
g5 {[%clk 00:15:38]} {[%emt 00:00:02]} 14. c3 {[%clk 00:14:10]} {[%emt
00:01:14]} g4 {[%clk 00:13:03]} {[%emt 00:02:40]} 15. Nd4 {[%clk 00:13:45]}
{[%emt 00:00:31]} Qh6 {[%clk 00:10:30]} {[%emt 00:02:38]} 16. g3 {[%clk
00:12:03]} {[%emt 00:01:46]} Nf4 {[%clk 00:10:15]} {[%emt 00:00:21]} 17. Bf1
{[%clk 00:11:28]} {[%emt 00:00:39]} Nh3+ {[%clk 00:10:12]} {[%emt 00:00:08]} 18.
Bxh3 {[%clk 00:11:32]} {[%emt 00:00:02]} Qxh3 {[%clk 00:10:06]} {[%emt
00:00:10]} 19. b4 {[%clk 00:10:55]} {[%emt 00:00:43]} f4 {[%clk 00:08:53]}
{[%emt 00:01:18]} 20. Qe2 {[%clk 00:08:20]} {[%emt 00:02:39]} fxg3 {[%clk
00:07:35]} {[%emt 00:01:23]} 21. fxg3 {[%clk 00:04:13]} {[%emt 00:04:13]} Bxg3
{[%clk 00:07:18]} {[%emt 00:00:22]} 22. hxg3 {[%clk 00:01:34]} {[%emt
00:02:43]} Qxg3+ {[%clk 00:07:07]} {[%emt 00:00:16]} 23. Kh1 {[%clk 00:01:38]}
{[%emt 00:00:02]} c5 {[%clk 00:05:47]} {[%emt 00:01:25]} 24. Rg1 {[%clk
00:00:37]} {[%emt 00:01:06]} Bb7+ {[%clk 00:05:28]} {[%emt 00:00:24]} 25. Rg2
{[%clk 00:00:40]} {[%emt 00:00:02]} Rae8 {[%clk 00:04:49]} {[%emt 00:00:43]}
0-1

[Event "Open NK Rapid 2025 bord 26-50"]
[Site "Helmond, Netherlands"]
[Date "2025.05.03"]
[Round "6.13"]
[White "Wolff, Christoph"]
[Black "Kakrana, Reyansh"]
[Result "1-0"]
[TimeControl "15 min +5 sec increment"]
[WhiteFideId "4648706"]
[BlackFideId "1094092"]
[WhiteElo "1941"]
[BlackElo "1796"]

1. e4 {[%clk 00:15:07]} {[%emt 00:00:01]} c6 {[%clk 00:15:03]} {[%emt
00:00:09]} 2. Nc3 {[%clk 00:15:09]} {[%emt 00:00:02]} d5 {[%clk 00:15:07]}
{[%emt 00:00:02]} 3. Nf3 {[%clk 00:15:13]} {[%emt 00:00:01]} dxe4 {[%clk
00:15:10]} {[%emt 00:00:02]} 4. Nxe4 {[%clk 00:15:16]} {[%emt 00:00:01]} Bf5
{[%clk 00:15:15]} 5. Ng3 {[%clk 00:15:19]} {[%emt 00:00:02]} Bg6 {[%clk
00:15:19]} 6. h4 {[%clk 00:15:21]} {[%emt 00:00:04]} h6 {[%clk 00:15:24]} 7.
Ne5 {[%clk 00:15:13]} {[%emt 00:00:12]} Bh7 {[%clk 00:15:26]} {[%emt 00:00:04]}
8. Qh5 {[%clk 00:14:58]} {[%emt 00:00:18]} g6 {[%clk 00:14:49]} {[%emt
00:00:44]} 9. Qf3 {[%clk 00:14:51]} {[%emt 00:00:11]} Nf6 {[%clk 00:11:32]}
{[%emt 00:03:22]} 10. Bc4 {[%clk 00:14:42]} {[%emt 00:00:14]} e6 {[%clk
00:10:59]} {[%emt 00:00:40]} 11. Qb3 {[%clk 00:13:35]} {[%emt 00:01:11]} Qc8
{[%clk 00:08:00]} {[%emt 00:03:04]} 12. d4 {[%clk 00:12:50]} {[%emt 00:00:50]}
b5 {[%clk 00:06:40]} {[%emt 00:01:25]} 13. Be2 {[%clk 00:12:07]} {[%emt
00:00:47]} Nbd7 {[%clk 00:06:25]} {[%emt 00:00:22]} 14. Bd2 {[%clk 00:11:24]}
{[%emt 00:00:46]} Nxe5 {[%clk 00:04:36]} {[%emt 00:01:55]} 15. dxe5 {[%clk
00:11:27]} {[%emt 00:00:02]} Nd5 {[%emt 00:00:17]} 16. c4 {[%clk 00:11:16]}
bxc4 {[%clk 00:04:17]} {[%emt 00:00:29]} 17. Qxc4 {[%clk 00:11:15]} {[%emt
00:00:04]} Nb6 {[%clk 00:04:13]} {[%emt 00:00:10]} 18. Qf4 {[%clk 00:09:37]}
{[%emt 00:01:42]} Nd5 {[%clk 00:03:51]} {[%emt 00:00:28]} 19. Qc4 {[%clk
00:09:36]} {[%emt 00:00:06]} Nb6 {[%clk 00:03:46]} {[%emt 00:00:10]} 20. Qc3
{[%clk 00:09:27]} {[%emt 00:00:14]} Nd5 {[%clk 00:03:10]} {[%emt 00:00:42]} 21.
Qf3 {[%clk 00:09:19]} {[%emt 00:00:11]} Bg7 {[%clk 00:02:48]} {[%emt 00:00:27]}
22. Rc1 {[%clk 00:06:02]} {[%emt 00:03:23]} Bxe5 {[%clk 00:02:21]} {[%emt
00:00:32]} 23. Bxh6 {[%clk 00:06:00]} {[%emt 00:00:07]} Bxb2 {[%clk 00:01:42]}
{[%emt 00:00:44]} 24. Rc2 {[%clk 00:06:03]} {[%emt 00:00:02]} Bf6 {[%clk
00:01:46]} {[%emt 00:00:01]} 25. Ne4 {[%clk 00:05:58]} {[%emt 00:00:10]} Be7
{[%clk 00:01:30]} {[%emt 00:00:21]} 26. Bg7 {[%clk 00:05:52]} {[%emt 00:00:10]}
Rg8 {[%clk 00:01:18]} {[%emt 00:00:17]} 27. Bf6 {[%clk 00:04:45]} {[%emt
00:01:12]} Bb4+ {[%clk 00:01:15]} {[%emt 00:00:08]} 28. Kf1 {[%clk 00:04:45]}
{[%emt 00:00:05]} Be7 {[%clk 00:00:36]} {[%emt 00:00:45]} 29. Be5 {[%clk
00:03:59]} {[%emt 00:00:51]} Qd7 {[%clk 00:00:32]} {[%emt 00:00:10]} 30. Ng5
{[%clk 00:03:36]} {[%emt 00:00:27]} f6 {[%clk 00:00:22]} {[%emt 00:00:15]} 31.
Nxh7 {[%clk 00:03:04]} {[%emt 00:00:37]} fxe5 {[%clk 00:00:25]} {[%emt
00:00:02]} 32. Ng5 {[%clk 00:03:07]} {[%emt 00:00:01]} Rf8 {[%clk 00:00:17]}
{[%emt 00:00:14]} 33. Qb3 {[%clk 00:02:39]} {[%emt 00:00:32]} a5 {[%clk
00:00:09]} {[%emt 00:00:14]} 34. Bd3 {[%clk 00:01:57]} {[%emt 00:00:46]} Ne3+
{[%clk 00:00:10]} {[%emt 00:00:05]} 35. Ke2 {[%clk 00:01:51]} {[%emt 00:00:11]}
Nxc2 {[%clk 00:00:14]} {[%emt 00:00:01]} 36. Bxg6+ {[%clk 00:01:54]} {[%emt
00:00:02]} Kd8 {[%clk 00:00:15]} {[%emt 00:00:04]} 37. Nxe6+ {[%clk 00:01:47]}
{[%emt 00:00:12]} Qxe6 {[%clk 00:00:16]} {[%emt 00:00:04]} 38. Rd1+ {[%clk
00:01:42]} {[%emt 00:00:10]} Qd6 {[%clk 00:00:07]} {[%emt 00:00:15]} 39. Rxd6+
{[%clk 00:01:41]} {[%emt 00:00:05]} Bxd6 {[%clk 00:00:11]} 40. Qxc2 {[%clk
00:01:41]} {[%emt 00:00:05]} Kd7 {[%clk 00:00:08]} {[%emt 00:00:08]} 41. h5
{[%clk 00:01:42]} {[%emt 00:00:04]} Rf6 {[%clk 00:00:09]} {[%emt 00:00:04]} 42.
g4 {[%clk 00:01:43]} {[%emt 00:00:04]} Raf8 {[%clk 00:00:12]} {[%emt 00:00:03]}
43. Bf5+ {[%clk 00:01:45]} {[%emt 00:00:03]} Kc7 {[%clk 00:00:12]} {[%emt
00:00:05]} 44. Qa4 {[%clk 00:01:30]} {[%emt 00:00:20]} Bb4 {[%clk 00:00:10]}
{[%emt 00:00:06]} 45. a3 {[%clk 00:01:30]} {[%emt 00:00:04]} Bc5 {[%clk
00:00:08]} {[%emt 00:00:08]} 46. Qxa5+ {[%clk 00:01:30]} {[%emt 00:00:06]} Bb6
{[%clk 00:00:10]} {[%emt 00:00:02]} 47. Qb4 {[%clk 00:01:32]} {[%emt 00:00:03]}
R8f7 {[%clk 00:00:09]} {[%emt 00:00:06]} 48. a4 {[%clk 00:01:31]} {[%emt
00:00:06]} Ba7 {[%clk 00:00:08]} {[%emt 00:00:07]} 49. f3 {[%clk 00:01:25]}
{[%emt 00:00:10]} Rd6 {[%clk 00:00:07]} {[%emt 00:00:06]} 50. Be4 {[%clk
00:01:21]} {[%emt 00:00:09]} Rfd7 {[%clk 00:00:07]} {[%emt 00:00:05]} 51. Qa5+
{[%clk 00:01:01]} {[%emt 00:00:25]} Kb7 {[%clk 00:00:10]} {[%emt 00:00:03]} 52.
Qb5+ {[%clk 00:00:52]} {[%emt 00:00:13]} Kc7 {[%clk 00:00:10]} {[%emt
00:00:05]} 53. Qxe5 {[%clk 00:00:55]} {[%emt 00:00:02]} Bd4 {[%clk 00:00:10]}
{[%emt 00:01:08]} 54. Qa5+ {[%clk 00:01:58]} {[%emt 00:00:03]} Bb6 {[%clk
00:00:14]} 55. Qc3 {[%clk 00:02:01]} {[%emt 00:00:01]} Re6 {[%clk 00:00:10]}
{[%emt 00:00:09]} 56. g5 {[%clk 00:01:59]} {[%emt 00:00:07]} Rd8 {[%clk
00:00:09]} {[%emt 00:00:07]} 57. h6 {[%clk 00:02:01]} {[%emt 00:00:02]} Ra8
{[%clk 00:00:08]} {[%emt 00:00:07]} 58. Qc4 {[%clk 00:01:57]} {[%emt 00:00:09]}
Rd6 {[%clk 00:00:09]} {[%emt 00:00:03]} 59. h7 {[%clk 00:01:52]} {[%emt
00:00:11]} Rad8 {[%clk 00:00:12]} {[%emt 00:00:01]} 60. Qc3 {[%clk 00:01:56]}
Bd4 {[%clk 00:00:12]} {[%emt 00:00:06]} 61. Qc4 {[%clk 00:01:42]} {[%emt
00:00:18]} Bb6 {[%clk 00:00:10]} {[%emt 00:00:07]} 62. Bd3 {[%clk 00:01:45]}
{[%emt 00:00:02]} Bd4 {[%clk 00:00:09]} {[%emt 00:00:06]} 63. g6 {[%clk
00:01:47]} {[%emt 00:00:02]} Bg7 {[%clk 00:00:08]} {[%emt 00:00:06]} 64. f4
{[%clk 00:01:46]} {[%emt 00:00:07]} Re8+ {[%clk 00:00:09]} {[%emt 00:00:05]} 65.
Kf3 {[%clk 00:01:48]} {[%emt 00:00:02]} Rf6 {[%clk 00:00:11]} {[%emt 00:00:03]}
66. f5 {[%clk 00:01:51]} {[%emt 00:00:02]} Ref8 {[%clk 00:00:10]} {[%emt
00:00:06]} 67. a5 {[%emt 00:00:06]} Ra8 {[%clk 00:00:11]} 68. a6 {[%clk
00:01:57]} {[%emt 00:00:03]} Bh8 {[%clk 00:00:12]} {[%emt 00:00:03]} 69. Qg8
{[%clk 00:01:57]} {[%emt 00:00:04]} Rff8 {[%clk 00:00:14]} {[%emt 00:00:04]} 70.
Qe6 {[%clk 00:01:54]} {[%emt 00:00:08]} Rxa6 {[%clk 00:00:14]} {[%emt
00:00:05]} 71. Bxa6 {[%clk 00:01:57]} {[%emt 00:00:02]} Ba1 {[%clk 00:00:16]}
{[%emt 00:00:04]} 72. Qe7+ {[%clk 00:01:59]} {[%emt 00:00:02]} Kb6 {[%clk
00:00:20]} {[%emt 00:00:02]} 73. Qxf8 {[%clk 00:02:03]} Kxa6 {[%clk 00:00:23]}
{[%emt 00:00:01]} 74. h8=Q {[%clk 00:02:06]} {[%emt 00:00:02]} Bxh8 {[%clk
00:00:26]} {[%emt 00:00:03]} 75. Qxh8 {[%clk 00:02:10]} c5 {[%clk 00:00:30]} 76.
Qc3 {[%clk 00:02:13]} {[%emt 00:00:02]} c4 {[%clk 00:00:34]} 77. Ke4 {[%clk
00:02:17]} Kb5 {[%clk 00:00:38]} {[%emt 00:00:01]} 78. Kd5 {[%clk 00:02:21]}
Kb6 {[%clk 00:00:43]} {[%emt 00:00:01]} 79. Qxc4 {[%clk 00:02:25]} Kb7 {[%clk
00:00:47]} 80. Qc6+ {[%clk 00:02:28]} {[%emt 00:00:02]} Kb8 {[%clk 00:00:51]}
{[%emt 00:00:01]} 81. Qd7 {[%clk 00:02:32]} {[%emt 00:00:01]} Ka8 {[%clk
00:00:55]} 82. Kc6 {[%clk 00:02:36]} Kb8 {[%clk 00:00:59]} 83. Qb7# {[%clk
00:02:40]} 1-0

[Event "Open NK Rapid 2025 bord 26-50"]
[Site "Helmond, Netherlands"]
[Date "2025.05.03"]
[Round "6.14"]
[White "Timmer, Michel"]
[Black "Garay, Enzo"]
[Result "1-0"]
[TimeControl "15 min +5 sec increment"]
[WhiteFideId "40104524"]
[BlackFideId "40104125"]
[WhiteElo "1796"]
[BlackElo "1933"]

1. e4 {[%clk 00:15:08]} {[%emt 00:00:01]} e6 {[%clk 00:15:09]} {[%emt
00:00:02]} 2. d4 {[%clk 00:14:59]} {[%emt 00:00:13]} d5 {[%clk 00:15:13]}
{[%emt 00:00:01]} 3. Nd2 {[%clk 00:15:03]} {[%emt 00:00:02]} Nf6 {[%clk
00:15:11]} {[%emt 00:00:06]} 4. e5 {[%clk 00:15:03]} {[%emt 00:00:05]} Nfd7
{[%clk 00:15:15]} {[%emt 00:00:01]} 5. Bd3 {[%clk 00:14:59]} {[%emt 00:00:10]}
c5 {[%clk 00:15:18]} {[%emt 00:00:02]} 6. c3 {[%clk 00:14:55]} {[%emt
00:00:09]} Nc6 {[%clk 00:15:21]} {[%emt 00:00:01]} 7. Ne2 {[%clk 00:14:57]}
{[%emt 00:00:02]} f6 {[%clk 00:15:04]} {[%emt 00:00:23]} 8. Nf4 {[%clk
00:14:38]} {[%emt 00:00:24]} fxe5 {[%clk 00:14:03]} {[%emt 00:01:06]} 9. Qh5+
{[%clk 00:13:57]} {[%emt 00:00:47]} Ke7 {[%clk 00:14:03]} {[%emt 00:00:05]} 10.
dxe5 {[%clk 00:10:21]} {[%emt 00:03:40]} Ndxe5 {[%clk 00:14:01]} {[%emt
00:00:07]} 11. Nf3 {[%clk 00:08:26]} {[%emt 00:02:00]} Nxf3+ {[%clk 00:13:37]}
{[%emt 00:00:29]} 12. gxf3 {[%clk 00:08:01]} {[%emt 00:00:30]} Qe8 {[%clk
00:13:02]} {[%emt 00:00:39]} 13. Bg6 {[%clk 00:04:53]} {[%emt 00:03:14]} Qd7
{[%clk 00:12:09]} {[%emt 00:00:58]} 14. Be3 {[%clk 00:04:46]} {[%emt 00:00:13]}
d4 {[%clk 00:11:54]} {[%emt 00:00:19]} 15. O-O-O {[%clk 00:04:46]} {[%emt
00:00:06]} e5 {[%clk 00:11:35]} {[%emt 00:00:23]} 16. Ne2 {[%clk 00:04:07]}
{[%emt 00:00:44]} Qe6 {[%clk 00:10:35]} {[%emt 00:01:05]} 17. Bg5+ {[%clk
00:03:48]} {[%emt 00:00:25]} Kd6 {[%clk 00:10:27]} {[%emt 00:00:12]} 18. Be4
{[%clk 00:03:37]} {[%emt 00:00:16]} h6 {[%clk 00:10:12]} {[%emt 00:00:20]} 19.
cxd4 {[%clk 00:03:25]} {[%emt 00:00:18]} cxd4 {[%clk 00:10:11]} {[%emt
00:00:06]} 20. Bxc6 {[%clk 00:03:03]} {[%emt 00:00:26]} bxc6 {[%clk 00:10:14]}
{[%emt 00:00:02]} 21. Nxd4 {[%clk 00:02:35]} {[%emt 00:00:33]} exd4 {[%clk
00:10:10]} {[%emt 00:00:09]} 22. Bf4+ {[%clk 00:02:34]} {[%emt 00:00:06]} Kd7
{[%clk 00:09:48]} {[%emt 00:00:27]} 23. Rxd4+ {[%clk 00:02:37]} {[%emt
00:00:02]} Ke7 {[%clk 00:09:52]} {[%emt 00:00:01]} 24. Re4 {[%clk 00:02:41]}
{[%emt 00:00:01]} Kf6 {[%clk 00:09:17]} {[%emt 00:00:41]} 25. Rxe6+ {[%clk
00:02:39]} {[%emt 00:00:07]} Bxe6 {[%clk 00:09:20]} 26. Re1 {[%clk 00:02:24]}
{[%emt 00:00:20]} g5 {[%clk 00:08:14]} {[%emt 00:01:11]} 27. Be5+ {[%clk
00:02:20]} {[%emt 00:00:09]} Kf5 {[%clk 00:08:11]} {[%emt 00:00:09]} 28. Qg4+
{[%clk 00:02:17]} {[%emt 00:00:07]} Kg6 {[%clk 00:08:14]} {[%emt 00:00:02]} 29.
Qxe6+ {[%clk 00:02:19]} {[%emt 00:00:03]} Kh5 {[%clk 00:08:17]} {[%emt
00:00:02]} 30. Bxh8 {[%clk 00:02:21]} {[%emt 00:00:04]} Bb4 {[%clk 00:08:18]}
{[%emt 00:00:04]} 31. Qg4+ {[%clk 00:02:17]} {[%emt 00:00:08]} Kg6 {[%clk
00:08:21]} {[%emt 00:00:02]} 32. Qxb4 {[%clk 00:02:20]} {[%emt 00:00:02]} Rxh8
{[%clk 00:08:24]} {[%emt 00:00:02]} 33. Re6+ {[%clk 00:02:19]} {[%emt
00:00:06]} Kf5 {[%clk 00:08:26]} {[%emt 00:00:03]} 34. Qg4# {[%clk 00:02:18]}
{[%emt 00:00:04]} 1-0

[Event "Open NK Rapid 2025 bord 26-50"]
[Site "Helmond, Netherlands"]
[Date "2025.05.03"]
[Round "6.15"]
[White "Meulmeester, Luuk"]
[Black "Alhasan, Husam"]
[Result "1-0"]
[TimeControl "15 min +5 sec increment"]
[WhiteFideId "40111776"]
[BlackFideId "11515090"]
[WhiteElo "1929"]
[BlackElo "1795"]

1. e4 {[%clk 00:15:08]} c5 {[%clk 00:15:08]} {[%emt 00:00:03]} 2. c3 {[%clk
00:15:09]} {[%emt 00:00:05]} d6 {[%emt 00:00:03]} 3. d4 {[%clk 00:15:12]} cxd4
{[%clk 00:15:15]} {[%emt 00:00:02]} 4. cxd4 {[%clk 00:15:15]} {[%emt 00:00:01]}
Nf6 {[%clk 00:15:18]} {[%emt 00:00:02]} 5. Nc3 {[%clk 00:15:18]} {[%emt
00:00:02]} g6 {[%clk 00:15:22]} {[%emt 00:00:02]} 6. Nf3 {[%clk 00:15:18]}
{[%emt 00:00:05]} Bg7 {[%clk 00:15:25]} {[%emt 00:00:02]} 7. Be2 {[%clk
00:15:17]} {[%emt 00:00:05]} a6 {[%clk 00:15:28]} {[%emt 00:00:03]} 8. O-O
{[%clk 00:14:59]} {[%emt 00:00:22]} b5 {[%clk 00:15:31]} {[%emt 00:00:03]} 9.
e5 {[%clk 00:13:32]} {[%emt 00:01:32]} dxe5 {[%clk 00:14:20]} {[%emt 00:01:16]}
10. dxe5 {[%clk 00:13:35]} {[%emt 00:00:01]} Qxd1 {[%clk 00:13:56]} {[%emt
00:00:29]} 11. Rxd1 {[%clk 00:13:36]} {[%emt 00:00:03]} Ng4 {[%clk 00:13:15]}
{[%emt 00:00:47]} 12. Nd5 {[%clk 00:12:04]} {[%emt 00:01:38]} Ra7 {[%clk
00:12:02]} {[%emt 00:01:18]} 13. Bf4 {[%clk 00:11:35]} {[%emt 00:00:33]} Be6
{[%clk 00:09:48]} {[%emt 00:02:20]} 14. h3 {[%clk 00:11:14]} {[%emt 00:00:25]}
Nh6 {[%clk 00:09:23]} {[%emt 00:00:31]} 15. a4 {[%clk 00:11:11]} {[%emt
00:00:07]} Rd7 {[%clk 00:08:41]} {[%emt 00:00:47]} 16. Nb4 {[%clk 00:09:12]}
{[%emt 00:02:04]} Rxd1+ {[%clk 00:08:09]} {[%emt 00:00:37]} 17. Rxd1 {[%clk
00:09:11]} {[%emt 00:00:06]} bxa4 {[%clk 00:07:03]} {[%emt 00:01:12]} 18. Nxa6
{[%clk 00:08:31]} {[%emt 00:00:45]} O-O {[%clk 00:06:54]} {[%emt 00:00:14]} 19.
Nc5 {[%clk 00:08:30]} {[%emt 00:00:05]} Nc6 {[%clk 00:03:35]} {[%emt 00:03:24]}
20. Nxa4 {[%clk 00:08:00]} {[%emt 00:00:34]} Bb3 {[%clk 00:03:34]} {[%emt
00:00:08]} 21. Ra1 {[%clk 00:08:03]} {[%emt 00:00:02]} Ra8 {[%clk 00:03:09]}
{[%emt 00:00:29]} 22. Bb5 {[%clk 00:08:05]} {[%emt 00:00:03]} Bd5 {[%clk
00:02:43]} {[%emt 00:00:32]} 23. Rc1 {[%clk 00:06:33]} {[%emt 00:01:34]} Bxf3
{[%clk 00:02:12]} {[%emt 00:00:38]} 24. Bxc6 {[%clk 00:06:30]} {[%emt
00:00:08]} Bxc6 {[%clk 00:01:36]} {[%emt 00:00:42]} 25. Rxc6 {[%clk 00:06:33]}
{[%emt 00:00:01]} Nf5 {[%clk 00:01:37]} {[%emt 00:00:05]} 26. Nb6 {[%clk
00:05:34]} {[%emt 00:01:03]} Rd8 {[%clk 00:01:22]} {[%emt 00:00:21]} 27. Rc8
{[%clk 00:05:04]} {[%emt 00:00:35]} Rxc8 {[%clk 00:01:20]} {[%emt 00:00:07]} 28.
Nxc8 {[%clk 00:05:07]} {[%emt 00:00:02]} Nd4 {[%clk 00:01:22]} {[%emt
00:00:03]} 29. Nxe7+ {[%clk 00:05:04]} {[%emt 00:00:08]} Kf8 {[%clk 00:01:18]}
{[%emt 00:00:09]} 30. Nd5 {[%clk 00:05:06]} {[%emt 00:00:02]} Ne2+ {[%clk
00:01:18]} {[%emt 00:00:06]} 31. Kf1 {[%clk 00:05:09]} Nxf4 {[%clk 00:01:21]}
{[%emt 00:00:03]} 32. Nxf4 {[%clk 00:05:12]} {[%emt 00:00:02]} Bxe5 {[%clk
00:01:24]} {[%emt 00:00:02]} 33. Nd3 {[%clk 00:05:15]} {[%emt 00:00:01]} Bd4
{[%clk 00:01:19]} {[%emt 00:00:10]} 34. Ke2 {[%clk 00:05:18]} {[%emt 00:00:02]}
f5 {[%clk 00:01:22]} {[%emt 00:00:03]} 35. b3 {[%clk 00:05:06]} {[%emt
00:00:17]} Ke7 {[%clk 00:01:23]} {[%emt 00:00:03]} 36. Ne1 {[%clk 00:04:46]}
{[%emt 00:00:25]} Kd6 {[%clk 00:01:18]} {[%emt 00:00:10]} 37. Nc2 {[%clk
00:04:50]} {[%emt 00:00:01]} Ba7 {[%clk 00:01:17]} {[%emt 00:00:07]} 38. f4
{[%clk 00:04:26]} {[%emt 00:00:28]} Kc5 {[%clk 00:01:14]} {[%emt 00:00:09]} 39.
Kd3 {[%clk 00:04:05]} {[%emt 00:00:26]} Kd5 {[%clk 00:01:13]} {[%emt 00:00:06]}
40. b4 {[%clk 00:03:44]} {[%emt 00:00:25]} h5 {[%clk 00:01:05]} {[%emt
00:00:13]} 41. Ne3+ {[%clk 00:03:22]} {[%emt 00:00:27]} Kc6 {[%clk 00:00:52]}
{[%emt 00:00:18]} 42. Nc4 {[%clk 00:03:13]} {[%emt 00:00:15]} Kb5 {[%clk
00:00:26]} {[%emt 00:00:31]} 43. Ne5 {[%clk 00:03:10]} {[%emt 00:00:07]} Kxb4
{[%emt 00:00:12]} 44. Nxg6 {[%emt 00:00:03]} Bb8 {[%clk 00:00:09]} {[%emt
00:00:09]} 45. Ke3 {[%clk 00:02:54]} {[%emt 00:00:20]} Ba7+ {[%clk 00:00:12]}
{[%emt 00:00:03]} 46. Kf3 {[%clk 00:02:56]} {[%emt 00:00:01]} Bb8 {[%clk
00:00:14]} {[%emt 00:00:03]} 47. Nh4 {[%clk 00:02:57]} {[%emt 00:00:04]} Kc4
{[%clk 00:00:17]} {[%emt 00:00:03]} 48. Nxf5 {[%clk 00:02:59]} {[%emt
00:00:01]} Kd5 {[%clk 00:00:19]} {[%emt 00:00:04]} 49. Ng3 {[%clk 00:02:57]}
{[%emt 00:00:07]} Ke6 {[%clk 00:00:20]} {[%emt 00:00:04]} 50. Nxh5 {[%clk
00:02:57]} {[%emt 00:00:05]} Kf5 {[%clk 00:00:24]} {[%emt 00:00:02]} 51. g4+
{[%clk 00:02:59]} {[%emt 00:00:02]} Kg6 {[%clk 00:00:27]} {[%emt 00:00:02]} 52.
Ng3 {[%clk 00:03:02]} {[%emt 00:00:02]} Bc7 {[%clk 00:00:30]} {[%emt 00:00:02]}
53. Ke4 {[%clk 00:03:06]} {[%emt 00:00:01]} Kh6 {[%clk 00:00:34]} {[%emt
00:00:01]} 54. Kf5 {[%clk 00:03:09]} {[%emt 00:00:02]} Kh7 {[%clk 00:00:37]}
{[%emt 00:00:02]} 55. h4 {[%clk 00:03:12]} Kh6 {[%clk 00:00:41]} {[%emt
00:00:01]} 56. g5+ {[%clk 00:03:16]} {[%emt 00:00:01]} Kh7 {[%clk 00:00:45]}
{[%emt 00:00:02]} 57. h5 {[%clk 00:03:20]} Kh8 {[%clk 00:00:48]} {[%emt
00:00:03]} 58. Ne4 {[%clk 00:03:23]} Kh7 {[%clk 00:00:50]} {[%emt 00:00:03]} 59.
Nf6+ {[%clk 00:03:25]} {[%emt 00:00:03]} Kh8 {[%clk 00:00:53]} {[%emt
00:00:02]} 60. g6 {[%clk 00:03:25]} {[%emt 00:00:05]} Bb8 {[%clk 00:00:50]}
{[%emt 00:00:09]} 61. h6 {[%clk 00:03:26]} {[%emt 00:00:04]} Bxf4 {[%emt
00:00:15]} 62. g7# {[%emt 00:00:08]} 1-0